[Event "Late-Titled-Tuesday-Blitz-February-06-2024"]
[Site "Chess.com"]
[Date "2024.02.06"]
[Round "3"]
[White "grzechu96"]
[Black "BilodeauA"]
[Result "1-0"]
[WhiteElo "2740"]
[BlackElo "2980"]
[TimeControl "180+1"]
[EndTime "14:30:05 PST"]
[Termination "grzechu96 won by checkmate"]

1. e4 {[%clk 0:03:00.9]} 1... e5 {[%clk 0:02:59.9]} 2. Nf3 {[%clk 0:03:01.2]}
2... Nc6 {[%clk 0:03:00.5]} 3. Bc4 {[%clk 0:03:01.5]} 3... Bc5 {[%clk
0:03:00.2]} 4. O-O {[%clk 0:03:00.6]} 4... Nf6 {[%clk 0:03:00.3]} 5. d3 {[%clk
0:03:01]} 5... d6 {[%clk 0:03:00.4]} 6. c3 {[%clk 0:03:00.9]} 6... h6 {[%clk
0:02:59.5]} 7. Re1 {[%clk 0:02:58.4]} 7... Bb6 {[%clk 0:02:57]} 8. Bb3 {[%clk
0:02:53.9]} 8... O-O {[%clk 0:02:55.9]} 9. h3 {[%clk 0:02:53.6]} 9... Ne7 {[%clk
0:02:44.3]} 10. Nbd2 {[%clk 0:02:51.3]} 10... Ng6 {[%clk 0:02:42.2]} 11. Nf1
{[%clk 0:02:42.2]} 11... c6 {[%clk 0:02:28.7]} 12. Ng3 {[%clk 0:02:42.4]} 12...
d5 {[%clk 0:02:27.1]} 13. exd5 {[%clk 0:02:40.1]} 13... Nxd5 {[%clk 0:02:27.4]}
14. d4 {[%clk 0:02:04.9]} 14... exd4 {[%clk 0:02:27.5]} 15. Nxd4 {[%clk
0:02:05.2]} 15... Bc7 {[%clk 0:02:11.1]} 16. Qh5 {[%clk 0:01:47.1]} 16... Ndf4
{[%clk 0:02:04.2]} 17. Bxf4 {[%clk 0:01:24.7]} 17... Nxf4 {[%clk 0:02:03.1]} 18.
Qf3 {[%clk 0:01:23.3]} 18... Qf6 {[%clk 0:01:53.8]} 19. Nh5 {[%clk 0:00:36.4]}
19... Nxh5 {[%clk 0:01:42.3]} 20. Qxh5 {[%clk 0:00:37.3]} 20... g6 {[%clk
0:01:37.6]} 21. Qe2 {[%clk 0:00:25.4]} 21... Bd6 {[%clk 0:01:18.2]} 22. Rad1
{[%clk 0:00:23]} 22... Bd7 {[%clk 0:01:17.7]} 23. Ne6 {[%clk 0:00:19.9]} 23...
Bxe6 {[%clk 0:00:37.8]} 24. Rxd6 {[%clk 0:00:20]} 24... Rad8 {[%clk 0:00:37.1]}
25. Rxd8 {[%clk 0:00:17.8]} 25... Rxd8 {[%clk 0:00:38]} 26. Bxe6 {[%clk
0:00:17.6]} 26... fxe6 {[%clk 0:00:38.1]} 27. Qxe6+ {[%clk 0:00:18.5]} 27...
Qxe6 {[%clk 0:00:38.6]} 28. Rxe6 {[%clk 0:00:19.3]} 28... Kf7 {[%clk 0:00:38]}
29. Re2 {[%clk 0:00:18.5]} 29... Rd1+ {[%clk 0:00:38.1]} 30. Kh2 {[%clk
0:00:19.1]} 30... a5 {[%clk 0:00:37.5]} 31. Kg3 {[%clk 0:00:18.2]} 31... a4
{[%clk 0:00:36.6]} 32. a3 {[%clk 0:00:18.3]} 32... b5 {[%clk 0:00:36.2]} 33. Kf3
{[%clk 0:00:18.3]} 33... Kf6 {[%clk 0:00:36.6]} 34. h4 {[%clk 0:00:18.3]} 34...
h5 {[%clk 0:00:36.2]} 35. g3 {[%clk 0:00:18.8]} 35... Rb1 {[%clk 0:00:34.1]} 36.
Rd2 {[%clk 0:00:18.1]} 36... Ke5 {[%clk 0:00:33.4]} 37. Ke3 {[%clk 0:00:17.9]}
37... Re1+ {[%clk 0:00:33.1]} 38. Re2 {[%clk 0:00:18.3]} 38... Rb1 {[%clk
0:00:32.7]} 39. Kd3+ {[%clk 0:00:18.1]} 39... Kd5 {[%clk 0:00:30]} 40. Rd2
{[%clk 0:00:13.7]} 40... Re1 {[%clk 0:00:28.3]} 41. Re2 {[%clk 0:00:13.8]} 41...
Rb1 {[%clk 0:00:28.3]} 42. f4 {[%clk 0:00:12.3]} 42... Rg1 {[%clk 0:00:24.9]}
43. Re5+ {[%clk 0:00:12.2]} 43... Kd6 {[%clk 0:00:24]} 44. Rg5 {[%clk 0:00:13]}
44... Rg2 {[%clk 0:00:24.8]} 45. Rxg6+ {[%clk 0:00:13.6]} 45... Kc5 {[%clk
0:00:25.4]} 46. Rg5+ {[%clk 0:00:13.4]} 46... Kd6 {[%clk 0:00:26.1]} 47. f5
{[%clk 0:00:03.9]} 47... Rxb2 {[%clk 0:00:20.5]} 48. Rxh5 {[%clk 0:00:03.6]}
48... Ra2 {[%clk 0:00:14.1]} 49. f6 {[%clk 0:00:03.4]} 49... Ke6 {[%clk
0:00:14]} 50. Rf5 {[%clk 0:00:03.6]} 50... Kf7 {[%clk 0:00:13.9]} 51. g4 {[%clk
0:00:04]} 51... Rxa3 {[%clk 0:00:05]} 52. g5 {[%clk 0:00:04.4]} 52... Ke6 {[%clk
0:00:05.9]} 53. f7 {[%clk 0:00:04.2]} 53... b4 {[%clk 0:00:06.6]} 54. Rf6+
{[%clk 0:00:03.1]} 54... Ke7 {[%clk 0:00:06.5]} 55. f8=Q+ {[%clk 0:00:03.6]}
55... Kd7 {[%clk 0:00:07.4]} 56. Qg7+ {[%clk 0:00:03.2]} 56... Ke8 {[%clk
0:00:07.7]} 57. Rf8# {[%clk 0:00:04.1]} 1-0

[Event "Late-Titled-Tuesday-Blitz-February-06-2024"]
[Site "Chess.com"]
[Date "2024.02.06"]
[Round "3"]
[White "Slovak_fighter2000"]
[Black "jcibarra"]
[Result "0-1"]
[WhiteElo "2513"]
[BlackElo "2883"]
[TimeControl "180+1"]
[EndTime "14:30:09 PST"]
[Termination "jcibarra won on time"]

1. d4 {[%clk 0:03:00.9]} 1... Nf6 {[%clk 0:03:00]} 2. Nf3 {[%clk 0:02:59.5]}
2... g6 {[%clk 0:03:00]} 3. c4 {[%clk 0:02:57.9]} 3... d6 {[%clk 0:03:00.5]} 4.
g3 {[%clk 0:02:56.1]} 4... Bf5 {[%clk 0:02:59.9]} 5. Nc3 {[%clk 0:02:55]} 5...
Ne4 {[%clk 0:02:59.9]} 6. Bd2 {[%clk 0:02:53.5]} 6... Bg7 {[%clk 0:02:58.9]} 7.
Bg2 {[%clk 0:02:49.6]} 7... c5 {[%clk 0:02:59.3]} 8. d5 {[%clk 0:02:27]} 8...
Nxc3 {[%clk 0:02:56.1]} 9. Bxc3 {[%clk 0:02:27]} 9... Bxc3+ {[%clk 0:02:56.5]}
10. bxc3 {[%clk 0:02:27.9]} 10... Qa5 {[%clk 0:02:47.1]} 11. Qb3 {[%clk
0:02:25.2]} 11... Be4 {[%clk 0:02:43.3]} 12. O-O {[%clk 0:02:18.4]} 12... b6
{[%clk 0:02:36.9]} 13. Nd2 {[%clk 0:02:15.6]} 13... Bxg2 {[%clk 0:02:36.5]} 14.
Kxg2 {[%clk 0:02:16.5]} 14... O-O {[%clk 0:02:36.7]} 15. e4 {[%clk 0:01:59.7]}
15... Nd7 {[%clk 0:02:36.1]} 16. f4 {[%clk 0:01:52.8]} 16... Rae8 {[%clk
0:02:24.7]} 17. Rfe1 {[%clk 0:01:45.8]} 17... e6 {[%clk 0:02:18]} 18. a4 {[%clk
0:01:39.2]} 18... Qa6 {[%clk 0:02:16.7]} 19. a5 {[%clk 0:01:27.2]} 19... bxa5
{[%clk 0:01:52.7]} 20. Qb5 {[%clk 0:01:22.8]} 20... Qxb5 {[%clk 0:01:49.3]} 21.
cxb5 {[%clk 0:01:23.7]} 21... exd5 {[%clk 0:01:46.8]} 22. exd5 {[%clk 0:01:24]}
22... Rxe1 {[%clk 0:01:42]} 23. Rxe1 {[%clk 0:01:22.9]} 23... Nb6 {[%clk
0:01:42.7]} 24. c4 {[%clk 0:01:21.1]} 24... a6 {[%clk 0:01:24]} 25. Rb1 {[%clk
0:01:14]} 25... Ra8 {[%clk 0:01:22.9]} 26. Kf3 {[%clk 0:01:02.9]} 26... a4
{[%clk 0:01:23.1]} 27. Ke2 {[%clk 0:00:44.6]} 27... a3 {[%clk 0:01:17.1]} 28.
bxa6 {[%clk 0:00:41]} 28... Rxa6 {[%clk 0:01:15.6]} 29. Kd3 {[%clk 0:00:41.3]}
29... a2 {[%clk 0:01:00.5]} 30. Ra1 {[%clk 0:00:41.4]} 30... Ra3+ {[%clk
0:00:59.6]} 31. Kc2 {[%clk 0:00:41.8]} 31... Na4 {[%clk 0:01:00.1]} 32. Ne4
{[%clk 0:00:37.1]} 32... Kf8 {[%clk 0:00:20.8]} 33. Nxd6 {[%clk 0:00:32]} 33...
Nb6 {[%clk 0:00:19.6]} 34. Kb2 {[%clk 0:00:29.3]} 34... Re3 {[%clk 0:00:19.5]}
35. Rxa2 {[%clk 0:00:25.9]} 35... Ke7 {[%clk 0:00:12.6]} 36. Nb7 {[%clk
0:00:25.6]} 36... Nxc4+ {[%clk 0:00:12.3]} 37. Kc2 {[%clk 0:00:23.9]} 37... Nb6
{[%clk 0:00:05.5]} 38. Nxc5 {[%clk 0:00:21]} 38... Nxd5 {[%clk 0:00:05.5]} 39.
Kd2 {[%clk 0:00:18.9]} 39... Rf3 {[%clk 0:00:04.4]} 40. Nd3 {[%clk 0:00:13.2]}
40... Rf1 {[%clk 0:00:03.5]} 41. Rb2 {[%clk 0:00:07.4]} 41... Rh1 {[%clk
0:00:03.3]} 42. Ne5 {[%clk 0:00:03.2]} 42... Rxh2+ {[%clk 0:00:03.7]} 43. Kc1
{[%clk 0:00:03.3]} 43... Rh1+ {[%clk 0:00:03.8]} 44. Kc2 {[%clk 0:00:03.1]}
44... Rh2+ {[%clk 0:00:03.2]} 45. Kb3 {[%clk 0:00:03.2]} 45... Rxb2+ {[%clk
0:00:03.5]} 46. Kxb2 {[%clk 0:00:04.1]} 46... Ke6 {[%clk 0:00:04]} 47. Kc2
{[%clk 0:00:03.7]} 47... f6 {[%clk 0:00:04.4]} 48. Nd3 {[%clk 0:00:01.7]} 48...
Kf5 {[%clk 0:00:04.5]} 49. Nf2 {[%clk 0:00:02.1]} 49... Ne3+ {[%clk 0:00:04.4]}
50. Kd3 {[%clk 0:00:02]} 50... Ng4 {[%clk 0:00:04.5]} 51. Ne4 {[%clk 0:00:01.3]}
51... Nh2 {[%clk 0:00:04.3]} 52. Nd6+ {[%clk 0:00:01.7]} 52... Kg4 {[%clk
0:00:04.5]} 53. Ne8 {[%clk 0:00:01.8]} 53... f5 {[%clk 0:00:04.4]} 54. Nf6+
{[%clk 0:00:01.4]} 54... Kxg3 {[%clk 0:00:04.9]} 55. Ke3 {[%clk 0:00:01.3]}
55... Ng4+ {[%clk 0:00:04.9]} 0-1

[Event "Late-Titled-Tuesday-Blitz-February-06-2024"]
[Site "Chess.com"]
[Date "2024.02.06"]
[Round "3"]
[White "Quattroporte300"]
[Black "protectiago"]
[Result "0-1"]
[WhiteElo "2374"]
[BlackElo "2093"]
[TimeControl "180+1"]
[EndTime "14:30:10 PST"]
[Termination "protectiago won by resignation"]

1. e4 {[%clk 0:02:55.7]} 1... e5 {[%clk 0:02:59.5]} 2. Nf3 {[%clk 0:02:54.6]}
2... Nc6 {[%clk 0:02:58.3]} 3. d4 {[%clk 0:02:55.1]} 3... exd4 {[%clk
0:02:57.3]} 4. Nxd4 {[%clk 0:02:56]} 4... Nf6 {[%clk 0:02:54.5]} 5. Nxc6 {[%clk
0:02:55.4]} 5... bxc6 {[%clk 0:02:54.5]} 6. e5 {[%clk 0:02:55.5]} 6... Qe7
{[%clk 0:02:54.6]} 7. Qe2 {[%clk 0:02:56]} 7... Nd5 {[%clk 0:02:54.6]} 8. c4
{[%clk 0:02:56.4]} 8... Ba6 {[%clk 0:02:54.9]} 9. b3 {[%clk 0:02:56.7]} 9... g6
{[%clk 0:02:48]} 10. g3 {[%clk 0:02:54.4]} 10... d6 {[%clk 0:02:41.1]} 11. Bb2
{[%clk 0:02:53.8]} 11... Bg7 {[%clk 0:02:41]} 12. Qe4 {[%clk 0:02:30.2]} 12...
f5 {[%clk 0:02:03.1]} 13. Qc2 {[%clk 0:02:16.2]} 13... Nb4 {[%clk 0:01:58.5]}
14. Qd2 {[%clk 0:02:12.6]} 14... c5 {[%clk 0:01:55.2]} 15. Bg2 {[%clk
0:02:07.6]} 15... Rd8 {[%clk 0:01:06.1]} 16. O-O {[%clk 0:02:01]} 16... dxe5
{[%clk 0:01:02.6]} 17. Qe2 {[%clk 0:01:59.2]} 17... e4 {[%clk 0:00:57.1]} 18.
Nc3 {[%clk 0:01:50.5]} 18... O-O {[%clk 0:00:53.5]} 19. Rad1 {[%clk 0:01:46.6]}
19... c6 {[%clk 0:00:48.8]} 20. f3 {[%clk 0:01:40.4]} 20... Bd4+ {[%clk
0:00:33.9]} 21. Kh1 {[%clk 0:01:39]} 21... Qg7 {[%clk 0:00:34.1]} 22. Na4 {[%clk
0:01:28.1]} 22... Bxb2 {[%clk 0:00:20.7]} 23. Nxb2 {[%clk 0:01:18.8]} 23... Nxa2
{[%clk 0:00:18.4]} 24. Rxd8 {[%clk 0:01:06]} 24... Rxd8 {[%clk 0:00:17.8]} 25.
fxe4 {[%clk 0:01:05.9]} 25... Nc3 {[%clk 0:00:16.6]} 26. Qc2 {[%clk 0:00:42.4]}
26... Nxe4 {[%clk 0:00:15.2]} 27. Bxe4 {[%clk 0:00:40.3]} 27... fxe4 {[%clk
0:00:15.3]} 28. Na4 {[%clk 0:00:35.4]} 28... Bc8 {[%clk 0:00:15.1]} 29. Qxe4
{[%clk 0:00:30.9]} 29... Bf5 {[%clk 0:00:14.8]} 30. Qxc6 {[%clk 0:00:23.6]}
30... Qe7 {[%clk 0:00:15]} 31. Nxc5 {[%clk 0:00:20.7]} 31... Rd2 {[%clk
0:00:13.5]} 32. Qa8+ {[%clk 0:00:14.8]} 32... Kg7 {[%clk 0:00:13]} 33. Qf3
{[%clk 0:00:13.7]} 33... Qxc5 {[%clk 0:00:12.3]} 34. Qc3+ {[%clk 0:00:13.3]}
34... Qd4 {[%clk 0:00:11.6]} 35. Qxd4+ {[%clk 0:00:13.5]} 35... Rxd4 {[%clk
0:00:12]} 36. Ra1 {[%clk 0:00:13.8]} 36... Rd7 {[%clk 0:00:10.7]} 37. b4 {[%clk
0:00:13.6]} 37... Rb7 {[%clk 0:00:09.9]} 38. b5 {[%clk 0:00:12.5]} 38... Bd3
{[%clk 0:00:09.9]} 39. Ra4 {[%clk 0:00:03.6]} 39... Kf6 {[%clk 0:00:08.6]} 40.
Kg1 {[%clk 0:00:02.5]} 40... Ke5 {[%clk 0:00:08.9]} 41. Kf2 {[%clk 0:00:03.2]}
41... Kd4 {[%clk 0:00:08.9]} 42. g4 {[%clk 0:00:02.2]} 42... Bxc4 {[%clk
0:00:09]} 43. Kg3 {[%clk 0:00:02.8]} 43... Kc5 {[%clk 0:00:08.2]} 44. Kh4 {[%clk
0:00:02.7]} 44... Kxb5 {[%clk 0:00:08.2]} 45. Ra1 {[%clk 0:00:03.1]} 45... a5
{[%clk 0:00:08]} 46. Kg5 {[%clk 0:00:03.3]} 46... a4 {[%clk 0:00:07.4]} 47. Rb1+
{[%clk 0:00:04]} 47... Bb3 {[%clk 0:00:07.4]} 48. h4 {[%clk 0:00:03.6]} 48...
Kb4 {[%clk 0:00:07.6]} 49. h5 {[%clk 0:00:04.1]} 49... gxh5 {[%clk 0:00:06.9]}
50. gxh5 {[%clk 0:00:04.2]} 50... a3 {[%clk 0:00:07]} 51. h6 {[%clk 0:00:04.9]}
51... a2 {[%clk 0:00:06.8]} 52. Re1 {[%clk 0:00:04.8]} 52... Ka3 {[%clk
0:00:06.4]} 53. Kf6 {[%clk 0:00:03.5]} 53... Kb2 {[%clk 0:00:06.4]} 54. Re2+
{[%clk 0:00:04.2]} 54... Bc2 {[%clk 0:00:06.8]} 0-1

[Event "Late-Titled-Tuesday-Blitz-February-06-2024"]
[Site "Chess.com"]
[Date "2024.02.06"]
[Round "3"]
[White "FMOlexandrProhorov"]
[Black "prime-morty"]
[Result "0-1"]
[WhiteElo "2302"]
[BlackElo "2571"]
[TimeControl "180+1"]
[EndTime "14:30:11 PST"]
[Termination "prime-morty won on time"]

1. e4 {[%clk 0:02:57.7]} 1... d6 {[%clk 0:03:00.1]} 2. d4 {[%clk 0:02:57.5]}
2... Nf6 {[%clk 0:03:00.7]} 3. Nc3 {[%clk 0:02:58]} 3... e5 {[%clk 0:03:01.3]}
4. Nf3 {[%clk 0:02:57.3]} 4... Nbd7 {[%clk 0:03:01]} 5. Bc4 {[%clk 0:02:56.9]}
5... h6 {[%clk 0:03:01.2]} 6. g4 {[%clk 0:02:52.2]} 6... g6 {[%clk 0:02:57.7]}
7. Rg1 {[%clk 0:02:48]} 7... exd4 {[%clk 0:02:56.5]} 8. Nxd4 {[%clk 0:02:47.3]}
8... Ne5 {[%clk 0:02:55.8]} 9. Be2 {[%clk 0:02:46.4]} 9... Bg7 {[%clk
0:02:50.2]} 10. Be3 {[%clk 0:02:36.4]} 10... h5 {[%clk 0:02:46.2]} 11. g5 {[%clk
0:02:22.4]} 11... Nfg4 {[%clk 0:02:44.6]} 12. Bc1 {[%clk 0:02:17.8]} 12... Nc6
{[%clk 0:02:26.3]} 13. Nb3 {[%clk 0:02:13.6]} 13... Nxh2 {[%clk 0:02:04.2]} 14.
f3 {[%clk 0:02:02.9]} 14... Be5 {[%clk 0:01:58.6]} 15. Be3 {[%clk 0:01:56.5]}
15... h4 {[%clk 0:01:58.2]} 16. f4 {[%clk 0:01:52.1]} 16... Bxc3+ {[%clk
0:01:51.3]} 17. bxc3 {[%clk 0:01:51]} 17... Qe7 {[%clk 0:01:51.7]} 18. Qd3
{[%clk 0:01:42.6]} 18... h3 {[%clk 0:01:39.2]} 19. O-O-O {[%clk 0:01:37]} 19...
Rh4 {[%clk 0:01:37.4]} 20. Rh1 {[%clk 0:01:23]} 20... Ng4 {[%clk 0:01:32.6]} 21.
Bd4 {[%clk 0:01:17.1]} 21... h2 {[%clk 0:01:16.4]} 22. Bxg4 {[%clk 0:00:52.7]}
22... Bxg4 {[%clk 0:01:13.9]} 23. Rde1 {[%clk 0:00:52.3]} 23... Rh3 {[%clk
0:01:12.2]} 24. Qf1 {[%clk 0:00:44.2]} 24... O-O-O {[%clk 0:01:07.9]} 25. Bf6
{[%clk 0:00:37.8]} 25... Qe8 {[%clk 0:01:02]} 26. Bxd8 {[%clk 0:00:37.7]} 26...
Qxd8 {[%clk 0:01:02.9]} 27. Qg2 {[%clk 0:00:32.2]} 27... Bd7 {[%clk 0:00:58.4]}
28. Rxh2 {[%clk 0:00:22.5]} 28... Rxc3 {[%clk 0:00:57.8]} 29. Qd2 {[%clk
0:00:22.4]} 29... Nb4 {[%clk 0:00:52.1]} 30. Qd4 {[%clk 0:00:16.8]} 30... Nd3+
{[%clk 0:00:40]} 31. Kb1 {[%clk 0:00:13.9]} 31... Rxb3+ {[%clk 0:00:37.5]} 32.
axb3 {[%clk 0:00:11.4]} 32... Nxe1 {[%clk 0:00:38.1]} 33. Rh8 {[%clk 0:00:09.9]}
33... Be8 {[%clk 0:00:38]} 34. Qxa7 {[%clk 0:00:06]} 34... Kd7 {[%clk
0:00:32.8]} 35. Qa5 {[%clk 0:00:06.1]} 35... Qe7 {[%clk 0:00:28.7]} 36. Qxe1
{[%clk 0:00:05.6]} 36... f6 {[%clk 0:00:25]} 37. gxf6 {[%clk 0:00:05.2]} 37...
Qxf6 {[%clk 0:00:25.4]} 38. Rh7+ {[%clk 0:00:05.8]} 38... Kc8 {[%clk 0:00:25.1]}
39. Qd2 {[%clk 0:00:05]} 39... Bc6 {[%clk 0:00:22.9]} 40. e5 {[%clk 0:00:05]}
40... dxe5 {[%clk 0:00:21.4]} 41. fxe5 {[%clk 0:00:05.4]} 41... Qxe5 {[%clk
0:00:21.8]} 42. Rf7 {[%clk 0:00:05]} 42... b6 {[%clk 0:00:20.5]} 43. Ka2 {[%clk
0:00:03.7]} 43... Kb7 {[%clk 0:00:16.3]} 44. Rf2 {[%clk 0:00:04.6]} 44... g5
{[%clk 0:00:15.7]} 45. Qd3 {[%clk 0:00:03.5]} 45... g4 {[%clk 0:00:15]} 46. Re2
{[%clk 0:00:03.4]} 46... Qf4 {[%clk 0:00:11.4]} 47. Re7 {[%clk 0:00:03]} 47...
g3 {[%clk 0:00:10.9]} 48. b4 {[%clk 0:00:02.3]} 48... g2 {[%clk 0:00:10.4]} 49.
b5 {[%clk 0:00:02.8]} 49... g1=Q {[%clk 0:00:04.2]} 50. bxc6+ {[%clk 0:00:02.4]}
50... Kxc6 {[%clk 0:00:05.1]} 51. Qc3+ {[%clk 0:00:02.2]} 51... Qc5 {[%clk
0:00:04.5]} 0-1

[Event "Late-Titled-Tuesday-Blitz-February-06-2024"]
[Site "Chess.com"]
[Date "2024.02.06"]
[Round "3"]
[White "ogpin"]
[Black "Sjakkerntobi"]
[Result "1-0"]
[WhiteElo "2238"]
[BlackElo "2469"]
[TimeControl "180+1"]
[EndTime "14:30:11 PST"]
[Termination "ogpin won on time"]

1. e4 {[%clk 0:03:00.9]} 1... e6 {[%clk 0:03:00.2]} 2. d4 {[%clk 0:03:00.1]}
2... d5 {[%clk 0:03:01]} 3. e5 {[%clk 0:02:56.3]} 3... c5 {[%clk 0:03:00.2]} 4.
c3 {[%clk 0:02:53.3]} 4... Nc6 {[%clk 0:03:00.6]} 5. Nf3 {[%clk 0:02:53.3]} 5...
Bd7 {[%clk 0:03:01]} 6. Bd3 {[%clk 0:02:53.6]} 6... Qc7 {[%clk 0:03:01.4]} 7.
O-O {[%clk 0:02:51.7]} 7... f6 {[%clk 0:03:01.9]} 8. Re1 {[%clk 0:02:50.6]} 8...
O-O-O {[%clk 0:03:02]} 9. a3 {[%clk 0:02:48.1]} 9... cxd4 {[%clk 0:02:59.7]} 10.
cxd4 {[%clk 0:02:47.9]} 10... Nge7 {[%clk 0:02:59.5]} 11. Nc3 {[%clk 0:02:48.1]}
11... Ng6 {[%clk 0:02:56.3]} 12. Bxg6 {[%clk 0:02:33.1]} 12... hxg6 {[%clk
0:02:55.2]} 13. Bf4 {[%clk 0:02:33.7]} 13... Qb6 {[%clk 0:02:38.1]} 14. exf6
{[%clk 0:02:26.3]} 14... gxf6 {[%clk 0:02:37.8]} 15. Na4 {[%clk 0:02:25.9]}
15... Qa6 {[%clk 0:02:33.3]} 16. Rc1 {[%clk 0:02:22.3]} 16... g5 {[%clk
0:02:30.7]} 17. Bg3 {[%clk 0:02:17.7]} 17... g4 {[%clk 0:02:30.3]} 18. Nd2
{[%clk 0:02:05.9]} 18... Qd3 {[%clk 0:02:07.8]} 19. Nb3 {[%clk 0:01:57.3]} 19...
Qxd1 {[%clk 0:02:06.2]} 20. Rexd1 {[%clk 0:01:58.2]} 20... b6 {[%clk 0:02:05.3]}
21. Nc3 {[%clk 0:01:49.6]} 21... Kb7 {[%clk 0:02:04.7]} 22. Nb5 {[%clk 0:01:42]}
22... Be8 {[%clk 0:01:58.7]} 23. Nc7 {[%clk 0:01:34.7]} 23... Bf7 {[%clk
0:01:55.9]} 24. Re1 {[%clk 0:01:32.6]} 24... e5 {[%clk 0:01:49.7]} 25. dxe5
{[%clk 0:01:25.6]} 25... fxe5 {[%clk 0:01:50.6]} 26. Nb5 {[%clk 0:01:24.1]}
26... Bg7 {[%clk 0:01:49.1]} 27. a4 {[%clk 0:01:07.7]} 27... Rhe8 {[%clk
0:01:21]} 28. a5 {[%clk 0:01:07.4]} 28... bxa5 {[%clk 0:01:09.2]} 29. Nc5+
{[%clk 0:00:56.3]} 29... Kb6 {[%clk 0:01:08.3]} 30. Na3 {[%clk 0:00:47.2]} 30...
Nd4 {[%clk 0:00:49.9]} 31. Na4+ {[%clk 0:00:45.2]} 31... Kb7 {[%clk 0:00:46.7]}
32. Nc5+ {[%clk 0:00:41.3]} 32... Ka8 {[%clk 0:00:46.3]} 33. Na6 {[%clk
0:00:41.5]} 33... Rd7 {[%clk 0:00:29.8]} 34. Nc7+ {[%clk 0:00:41.2]} 34... Rxc7
{[%clk 0:00:28.3]} 35. Rxc7 {[%clk 0:00:42.1]} 35... Rf8 {[%clk 0:00:20.3]} 36.
Bxe5 {[%clk 0:00:42.2]} 36... Re8 {[%clk 0:00:10.5]} 37. Rxf7 {[%clk 0:00:36.2]}
37... Bxe5 {[%clk 0:00:10.7]} 38. Kf1 {[%clk 0:00:18]} 38... Nc6 {[%clk
0:00:10.9]} 39. Rf5 {[%clk 0:00:17.2]} 39... Kb8 {[%clk 0:00:09.5]} 40. Nb5
{[%clk 0:00:16.9]} 40... Re7 {[%clk 0:00:06.8]} 41. f4 {[%clk 0:00:13.8]} 41...
gxf3 {[%clk 0:00:06.6]} 42. gxf3 {[%clk 0:00:14.7]} 42... Kc8 {[%clk 0:00:02]}
43. f4 {[%clk 0:00:13.5]} 43... Bxb2 {[%clk 0:00:02.4]} 44. Rxe7 {[%clk
0:00:09.9]} 44... Nxe7 {[%clk 0:00:03.3]} 45. Nxa7+ {[%clk 0:00:10.4]} 45... Kd7
{[%clk 0:00:03.9]} 46. Rh5 {[%clk 0:00:07.5]} 46... a4 {[%clk 0:00:04.2]} 47.
Nb5 {[%clk 0:00:06]} 47... Kc6 {[%clk 0:00:04.8]} 48. f5 {[%clk 0:00:04.5]}
48... Kxb5 {[%clk 0:00:04.8]} 49. Rh7 {[%clk 0:00:03.4]} 49... Nc6 {[%clk
0:00:02]} 50. Rb7+ {[%clk 0:00:02.1]} 50... Kc4 {[%clk 0:00:01.8]} 51. Rxb2
{[%clk 0:00:03]} 51... Kd4 {[%clk 0:00:01.2]} 52. f6 {[%clk 0:00:03.1]} 52...
Nd8 {[%clk 0:00:01.1]} 53. Rb8 {[%clk 0:00:02.7]} 1-0

[Event "Late-Titled-Tuesday-Blitz-February-06-2024"]
[Site "Chess.com"]
[Date "2024.02.06"]
[Round "3"]
[White "Elsa167"]
[Black "djano"]
[Result "1-0"]
[WhiteElo "2890"]
[BlackElo "2621"]
[TimeControl "180+1"]
[EndTime "14:30:14 PST"]
[Termination "Elsa167 won by checkmate"]

1. d4 {[%clk 0:03:00.9]} 1... Nf6 {[%clk 0:02:58.8]} 2. c4 {[%clk 0:02:59.1]}
2... g6 {[%clk 0:02:58.2]} 3. Nc3 {[%clk 0:02:59]} 3... d5 {[%clk 0:02:58.5]} 4.
Nf3 {[%clk 0:02:57.8]} 4... Bg7 {[%clk 0:02:58.3]} 5. Bg5 {[%clk 0:02:58.4]}
5... c5 {[%clk 0:02:56.7]} 6. Bxf6 {[%clk 0:02:38.5]} 6... Bxf6 {[%clk
0:02:56.2]} 7. cxd5 {[%clk 0:02:36.9]} 7... cxd4 {[%clk 0:02:49.6]} 8. Nxd4
{[%clk 0:02:36.6]} 8... Qb6 {[%clk 0:02:46.3]} 9. Nb3 {[%clk 0:02:34.7]} 9...
O-O {[%clk 0:02:44.6]} 10. e3 {[%clk 0:02:34.6]} 10... Rd8 {[%clk 0:02:40.1]}
11. Be2 {[%clk 0:02:34.5]} 11... a5 {[%clk 0:02:27.8]} 12. a4 {[%clk 0:02:18.9]}
12... Na6 {[%clk 0:02:17.1]} 13. O-O {[%clk 0:02:16.8]} 13... Nb4 {[%clk
0:02:16.6]} 14. Bf3 {[%clk 0:02:04.3]} 14... e6 {[%clk 0:02:15.7]} 15. e4 {[%clk
0:01:55.4]} 15... exd5 {[%clk 0:02:12.7]} 16. exd5 {[%clk 0:01:56]} 16... Bf5
{[%clk 0:01:59.2]} 17. Nd2 {[%clk 0:01:15.3]} 17... Bxc3 {[%clk 0:01:19.3]} 18.
bxc3 {[%clk 0:01:15.3]} 18... Nxd5 {[%clk 0:01:19.6]} 19. Nc4 {[%clk 0:01:01.6]}
19... Qc5 {[%clk 0:01:19.6]} 20. Qd4 {[%clk 0:01:01.8]} 20... Qxd4 {[%clk
0:01:15.9]} 21. cxd4 {[%clk 0:01:02.7]} 21... Ra6 {[%clk 0:00:40.6]} 22. Ne3
{[%clk 0:00:44.3]} 22... Be6 {[%clk 0:00:40.1]} 23. Rfc1 {[%clk 0:00:40.2]}
23... Rb6 {[%clk 0:00:35.1]} 24. Nc4 {[%clk 0:00:39]} 24... Ra6 {[%clk 0:00:28]}
25. Rab1 {[%clk 0:00:38.1]} 25... Nb4 {[%clk 0:00:25.3]} 26. Nxa5 {[%clk
0:00:23.8]} 26... Rxd4 {[%clk 0:00:25.4]} 27. Nxb7 {[%clk 0:00:18]} 27... Rxa4
{[%clk 0:00:24.9]} 28. Nc5 {[%clk 0:00:18.5]} 28... Ra2 {[%clk 0:00:23.4]} 29.
Nxe6 {[%clk 0:00:15.6]} 29... fxe6 {[%clk 0:00:24.3]} 30. h3 {[%clk 0:00:10.1]}
30... Kg7 {[%clk 0:00:22.8]} 31. Rc7+ {[%clk 0:00:09.8]} 31... Kf6 {[%clk
0:00:23.1]} 32. Rxh7 {[%clk 0:00:09.5]} 32... Nd3 {[%clk 0:00:19.1]} 33. Rf1
{[%clk 0:00:07.8]} 33... Ne5 {[%clk 0:00:19]} 34. Rh8 {[%clk 0:00:04.1]} 34...
Nxf3+ {[%clk 0:00:18.4]} 35. gxf3 {[%clk 0:00:05]} 35... Kg7 {[%clk 0:00:16.7]}
36. Re8 {[%clk 0:00:04.6]} 36... Kf7 {[%clk 0:00:16.6]} 37. Rb8 {[%clk
0:00:04.9]} 37... Kf6 {[%clk 0:00:16.3]} 38. Kg2 {[%clk 0:00:05.3]} 38... Rdd2
{[%clk 0:00:07.8]} 39. Rb4 {[%clk 0:00:04.1]} 39... e5 {[%clk 0:00:06.6]} 40. f4
{[%clk 0:00:04.2]} 40... exf4 {[%clk 0:00:06.2]} 41. Rxf4+ {[%clk 0:00:05.1]}
41... Kg5 {[%clk 0:00:07]} 42. Rf3 {[%clk 0:00:05.7]} 42... Kh6 {[%clk
0:00:06.4]} 43. Re1 {[%clk 0:00:06.2]} 43... Rd5 {[%clk 0:00:06.6]} 44. Re4
{[%clk 0:00:06]} 44... Rg5+ {[%clk 0:00:07]} 45. Kh2 {[%clk 0:00:06]} 45... Raa5
{[%clk 0:00:06.2]} 46. Rh4+ {[%clk 0:00:06.1]} 46... Kg7 {[%clk 0:00:06.1]} 47.
Rhf4 {[%clk 0:00:05.2]} 47... Rge5 {[%clk 0:00:05.9]} 48. Rf7+ {[%clk
0:00:05.2]} 48... Kh6 {[%clk 0:00:06.4]} 49. Rf8 {[%clk 0:00:05.7]} 49... Kg7
{[%clk 0:00:06.1]} 50. R8f7+ {[%clk 0:00:05.6]} 50... Kh6 {[%clk 0:00:06.4]} 51.
Rg3 {[%clk 0:00:05.9]} 51... Ra2 {[%clk 0:00:05.1]} 52. Rf6 {[%clk 0:00:04.5]}
52... Rg5 {[%clk 0:00:04]} 53. Rgf3 {[%clk 0:00:03.6]} 53... Kg7 {[%clk
0:00:03.7]} 54. Rf8 {[%clk 0:00:03.8]} 54... Kh6 {[%clk 0:00:03.4]} 55. R3f7
{[%clk 0:00:03.4]} 55... Re5 {[%clk 0:00:03.2]} 56. Rh8+ {[%clk 0:00:03.1]}
56... Kg5 {[%clk 0:00:03.5]} 57. Kg3 {[%clk 0:00:03.6]} 57... Rf5 {[%clk
0:00:03.4]} 58. h4# {[%clk 0:00:03.1]} 1-0